bitfinex-derivatives/quotes_BNBF0:USTF0_20250603
["timestamp","ask_amount","ask_price","bid_price","bid_amount"]
[1748959204040,0.30025972,666.09,664.83,1.07079101]
[1748959204246,0.30025972,666.09,664.84,1.07553028]
[1748959204442,0.30025972,666.09,664.77,1.08936383]
[1748959204443,0.30025972,666.09,664.85,1.07553028]
[1748959204642,0.30025972,666.09,664.86,1.07553028]
[1748959204847,0.30025972,666.09,664.77,1.08936383]
[1748959205042,0.30025972,666.09,664.78,1.07971015]
[1748959205247,0.30025972,666.09,664.79,1.07971015]
[1748959205447,3.74707087,666.66,664.8,1.07971015]
[1748959205643,0.300012,666.64,664.81,1.07971015]
[1748959205843,0.300012,666.64,664.82,1.38054345]
[1748959206150,3.74707087,666.59,664.83,1.38053893]
[1748959206448,3.74707087,666.59,664.84,1.07971015]
[1748959206649,3.74707087,666.58,664.85,1.07971015]
[1748959206845,3.74707087,666.58,664.86,1.07971015]
[1748959207051,4.04708287,666.64,664.87,1.38052083]
[1748959207249,0.26165709,666.36,664.88,1.07971015]
[1748959207448,0.26165709,666.36,664.87,0.30081068]
[1748959207654,0.30014256,666.35,664.88,1.07916384]
[1748959207949,0.30014256,666.35,664.87,0.30081068]
[1748959208153,0.30014256,666.35,664.88,1.07893422]
[1748959208354,0.30014256,666.35,664.89,1.07891425]
[1748959208557,0.30014256,666.35,664.87,0.30081068]
[1748959208857,0.30014256,666.35,664.88,1.0789668]
[1748959209057,0.30014256,666.35,664.89,1.0789668]
[1748959209252,0.30014256,666.35,664.9,1.07900035]
[1748959209450,0.30014256,666.35,664.87,0.30081068]
[1748959209652,0.30014256,666.35,664.88,1.078993]
[1748959209855,0.30014256,666.35,664.87,0.30081068]
[1748959209856,0.30014256,666.35,664.89,1.078993]
[1748959210056,0.30014256,666.35,664.87,0.30081068]
[1748959210257,0.30014256,666.35,664.88,1.0790299]
[1748959210457,0.30014256,666.35,664.89,1.0790299]
[1748959210652,0.30014256,666.35,664.9,1.07908113]
[1748959210957,0.30014256,666.35,664.87,0.30081068]
[1748959211158,0.30014256,666.35,664.88,1.07907705]
[1748959211358,0.30014256,666.35,664.89,1.07907705]
[1748959211553,0.30014256,666.35,664.9,1.07908045]
[1748959211756,0.30014256,666.35,664.87,0.30081068]
[1748959211956,0.30014256,666.35,664.88,1.07913576]
[1748959212155,0.30014256,666.35,664.87,0.30081068]
[1748959212156,0.30014256,666.35,664.89,1.07913569]
[1748959212356,0.30014256,666.35,664.9,1.07913569]
[1748959212556,0.30014256,666.35,664.87,0.30081068]
[1748959212755,0.30014256,666.35,664.88,1.0791952]
[1748959212953,0.30014256,666.35,664.89,1.0791952]
[1748959213153,0.30014256,666.35,664.9,1.0791952]
[1748959213453,0.30014256,666.35,664.87,0.30081068]
[1748959213653,0.30014256,666.35,664.88,1.07893738]
[1748959213958,0.30014256,666.35,664.89,1.07893738]
[1748959214153,0.30014256,666.35,664.87,0.30081068]
[1748959214154,0.30014256,666.35,664.9,1.07893738]
[1748959214360,0.30014256,666.35,664.87,0.30081068]
[1748959214659,0.30014256,666.35,664.88,1.07901982]
[1748959214853,0.30014256,666.35,664.89,1.37982145]
[1748959215057,0.30014256,666.35,664.9,1.37981693]
[1748959215259,0.30014256,666.35,664.91,0.30079258]
[1748959216557,3.74707087,666.34,664.91,0.30079258]
[1748959216762,0.30015157,666.33,664.91,0.30079258]
[1748959216957,3.74707087,666.01,664.91,0.30079258]
[1748959217361,3.74707087,666.03,664.91,0.30079258]
[1748959217561,3.74707087,666.03,664.91,0.77862858]
[1748959217761,3.74707087,665.97,664.91,0.77862858]
[1748959217962,3.74707087,665.97,664.92,0.477836]
[1748959218156,3.74707087,665.98,664.92,0.477836]
[1748959218357,3.74707087,665.98,664.91,0.77862858]
[1748959218562,3.74707087,665.98,664.93,0.477836]
[1748959218861,3.74707087,666.09,664.93,0.477836]
[1748959219260,0.30015157,666.33,664.91,0.30079258]
[1748959219760,0.30015157,666.33,664.92,1.07936865]
[1748959219960,0.30015157,666.33,664.92,1.09469992]
[1748959220362,0.30015157,666.33,664.93,1.07937123]
[1748959220561,0.30015157,666.33,664.94,1.38018868]
[1748959220764,4.03849819,666.33,664.95,0.30077449]
[1748959221361,0.30015157,666.33,664.95,0.30077449]
[1748959221764,3.73834662,666.32,664.96,1.07949132]
[1748959221963,3.73834662,666.32,664.97,0.30076544]
[1748959222164,4.03849819,666.33,664.97,0.30076544]
[1748959222661,3.73834662,666.32,664.97,0.30076544]
[1748959225470,0.30015157,666.33,664.97,0.30076544]
[1748959226770,3.73834662,666.31,664.97,0.30076544]
[1748959227373,3.73834662,666.19,664.97,0.30076544]
[1748959227668,3.73834662,666.19,664.98,1.07982438]
[1748959227873,3.73834662,666.22,664.97,0.30076544]
[1748959228073,3.73834662,666.22,664.98,0.47714669]
[1748959228265,3.73834662,666.2,664.98,0.47714669]
[1748959228470,3.73834662,666.2,664.99,0.47714669]
[1748959228667,3.73834662,666.2,664.97,0.30076544]
[1748959228668,3.73834662,666.22,665.01,0.47714669]
[1748959228974,3.73834662,666.22,665.02,0.47714669]
[1748959229275,3.73834662,666.22,664.97,0.30076544]
[1748959229276,3.73834662,666.2,664.99,0.47714669]
[1748959229474,3.73834662,666.2,665.06,0.47714669]
[1748959229667,3.73834662,666.13,665.08,0.47714669]
[1748959230068,3.73834662,666.13,664.97,0.30076544]
[1748959230069,3.73834662,666.12,665.04,0.47714669]
[1748959230473,3.73834662,666.13,665.05,0.47714669]
[1748959230876,3.73834662,666.13,665.06,0.47714669]
[1748959231369,3.73834662,666.13,665.08,0.47714669]
[1748959231573,3.73834662,666.2,665.08,0.47714669]
[1748959231771,3.73834662,666.2,665.06,0.47714669]
[1748959231974,3.73834662,666.18,665.06,0.47714669]
[1748959232476,3.73834662,666.18,665.08,0.47714669]
[1748959233068,3.73834662,666.18,665.12,0.47714669]
[1748959233271,3.73834662,666.14,665.12,0.47714669]
[1748959233471,3.73834662,666.14,665.17,0.47714669]
[1748959233672,3.73834662,666.1,665.18,0.47714669]
[1748959233870,3.73834662,666.1,665.16,0.47714669]
[1748959234072,3.73834662,666.1,664.97,0.30076544]
[1748959234073,3.73834662,666.1,665.15,0.47714669]
[1748959234274,3.73834662,666.13,665.15,0.47714669]
[1748959234676,3.73834662,666.13,665.2,0.47714669]
[1748959234873,3.73834662,666.11,665.21,0.47714669]
[1748959235073,3.73834662,666.11,665.22,0.47714669]
[1748959235273,3.73834662,666.09,665.25,0.47714669]
[1748959235673,3.73834662,666.02,665.29,0.47714669]
[1748959236074,3.73834662,666.03,665.29,0.47714669]
[1748959236274,3.73834662,666.03,665.23,0.47714669]
[1748959236471,3.73834662,666.03,664.97,0.30076544]
[1748959236472,3.73834662,666.12,665.24,0.47714669]
[1748959236872,3.73834662,666.12,665.26,0.47714669]
[1748959237074,3.73834662,666.14,665.24,0.47714669]
[1748959237271,3.73834662,666.14,665.22,0.47714669]
[1748959237474,3.73834662,666.14,664.97,0.30076544]
[1748959237475,3.73834662,666.19,665.14,0.47714669]
[1748959237676,3.73834662,666.19,665.16,0.47714669]
[1748959237872,3.73834662,666.27,665.16,0.47714669]
[1748959238677,3.73834662,666.27,665.17,0.47714669]
[1748959238878,3.73834662,666.26,665.17,0.47714669]
[1748959239380,3.73834662,666.27,665.17,0.47714669]
[1748959240179,3.73834662,666.3,665.16,0.47714669]
[1748959240379,3.73834662,666.3,665.17,0.47714669]
[1748959240779,3.73834662,666.29,665.17,0.47714669]
[1748959241180,3.73834662,666.29,665.16,0.47714669]
[1748959241482,3.73834662,666.29,665.17,0.47714669]
[1748959241681,3.73834662,666.29,665.16,0.47714669]
[1748959242079,3.73834662,666.3,665.16,0.47714669]
[1748959243187,3.73834662,666.3,665.11,0.47714669]
[1748959243389,3.73834662,666.3,664.97,0.30076544]
[1748959243589,0.30015157,666.33,664.97,0.30076544]
[1748959253794,3.73834662,666.19,664.99,0.47714669]
[1748959254097,3.73834662,666.19,664.98,0.47714669]
[1748959254297,3.73834662,666.19,664.97,0.30076544]
[1748959254694,3.73834662,666.29,664.97,0.30076544]
[1748959255197,3.73834662,666.3,664.97,0.30076544]
[1748959255599,4.03849819,666.33,664.97,0.30076544]
[1748959255992,3.73834662,666.31,664.97,0.30076544]
[1748959256797,0.30015157,666.33,664.97,0.30076544]
[1748959256798,3.73834662,666.25,664.97,0.30076544]
[1748959257300,3.73834662,666.26,664.97,0.30076544]
[1748959258295,3.73834662,666.28,664.97,0.30076544]
[1748959258901,3.73834662,666.27,664.97,0.30076544]
[1748959259794,3.73834662,666.26,664.97,0.30076544]
[1748959260601,0.30015157,666.33,664.97,0.30076544]
[1748959261203,3.73834662,666.17,664.97,0.30076544]
[1748959261597,3.73834662,665.85,664.97,0.30076544]
[1748959262103,3.73834662,665.79,664.97,0.30076544]
[1748959262502,3.73834662,665.77,664.97,0.30076544]
[1748959263003,3.73834662,665.76,664.97,0.30076544]
[1748959263504,3.73834662,665.77,664.97,0.30076544]
[1748959263901,3.73834662,665.77,664.92,1.09469992]
[1748959263902,3.73834662,665.76,664.92,1.09469992]
[1748959265303,3.73834662,665.77,664.92,1.09469992]
[1748959265902,3.73834662,665.72,664.92,1.09469992]
[1748959266300,3.73834662,665.83,664.92,1.09469992]
[1748959267299,3.73834662,665.8,664.92,1.09469992]
[1748959267698,3.73834662,665.82,664.92,1.09469992]
[1748959268610,3.73834662,665.85,664.92,1.09469992]
[1748959269405,3.73834662,665.94,664.92,1.09469992]
[1748959270707,3.73834662,666.18,664.92,1.09469992]
[1748959271306,3.73834662,666.2,664.92,1.09469992]
[1748959271913,0.30021465,666.19,664.92,1.09469992]
[1748959272308,3.73834662,665.93,664.92,1.09469992]
[1748959273220,3.73834662,665.77,664.92,1.09469992]
[1748959274821,3.73834662,665.79,664.92,1.09469992]
[1748959275216,5.23368527,666.04,664.92,1.09469992]
[1748959275217,3.73834662,665.8,664.92,1.09469992]
[1748959275623,3.73834662,665.81,664.92,1.09469992]
[1748959276225,3.73834662,665.82,664.92,1.09469992]
[1748959276626,3.73834662,665.84,664.92,1.09469992]
[1748959277526,3.73834662,665.95,664.92,1.09469992]
[1748959277919,3.73834662,665.96,664.92,1.09469992]
[1748959278320,0.30021465,666.19,664.92,1.09469992]
[1748959278321,3.73834662,665.99,664.92,1.09469992]
[1748959278725,3.73834662,665.99,664.92,1.57184661]
[1748959279225,3.73834662,665.99,664.92,1.09469992]
[1748959279428,3.73834662,666.08,664.92,1.09469992]
[1748959279726,0.30026874,666.07,664.92,1.09469992]
[1748959282328,3.73834662,666.26,664.92,1.09469992]
[1748959282823,3.73834662,666.21,664.92,1.09469992]
[1748959283028,3.73834662,666.25,664.92,1.09469992]
[1748959283528,3.73834662,666.24,664.92,1.09469992]
[1748959283923,3.73834662,666.25,664.92,1.09469992]
[1748959284926,3.73834662,666.26,664.92,1.09469992]
[1748959285723,0.26164725,666.56,664.92,1.09469992]
[1748959286728,0.26164725,666.56,665.11,0.47714669]
[1748959286928,0.26164725,666.56,665.12,0.47714669]
[1748959287225,0.26164725,666.56,664.92,1.09469992]
[1748959287226,0.26164725,666.56,665.11,0.47714669]
[1748959287426,0.26164725,666.56,665.12,0.47714669]
[1748959287830,0.26164725,666.56,665.13,0.47714669]
[1748959288230,0.26164725,666.56,665.12,0.47714669]
[1748959288828,0.26164725,666.56,664.92,1.09469992]
[1748959288829,0.26164725,666.56,665.13,0.47714669]
[1748959289225,0.26164725,666.56,665.11,0.47714669]
[1748959289427,0.26164725,666.56,665.05,0.47714669]
[1748959289626,0.26164725,666.56,665.03,0.47714669]
[1748959290029,0.26164725,666.56,665.04,0.47714669]
[1748959290229,0.26164725,666.56,665.0,0.47714669]
[1748959290531,0.26164725,666.56,664.96,0.47714669]
[1748959291024,0.26164725,666.56,664.97,0.47714669]
[1748959291229,0.26164725,666.56,664.94,0.47714669]
[1748959291527,0.26164725,666.56,664.92,1.09469992]
[1748959296835,0.26164725,666.56,665.01,0.47714669]
[1748959297136,0.26164725,666.56,665.04,0.47714669]
[1748959297634,0.26164725,666.56,665.02,0.47714669]
[1748959297836,0.26164725,666.56,665.03,0.47714669]
[1748959298033,0.26164725,666.56,665.06,0.47714669]
[1748959298235,0.26164725,666.56,665.15,0.47714669]
[1748959298437,0.26164725,666.56,665.18,0.47714669]
[1748959298837,0.26164725,666.56,665.15,0.47714669]
[1748959299137,0.26164725,666.56,664.92,1.09469992]
[1748959299138,0.26164725,666.56,665.16,0.47714669]
[1748959299339,0.26164725,666.56,665.18,0.47714669]
[1748959299633,0.26164725,666.56,665.15,0.47714669]
[1748959299838,0.26164725,666.56,665.09,0.47714669]
[1748959300038,0.26164725,666.56,665.08,0.47714669]
[1748959300338,0.26164725,666.56,665.02,0.47714669]
[1748959300637,0.26164725,666.56,664.97,0.47714669]
[1748959300838,0.26164725,666.56,664.94,0.47714669]
[1748959301138,0.26164725,666.56,664.92,1.09469992]
[1748959301341,3.71927974,666.28,664.92,1.09469992]
[1748959301741,3.71927974,666.09,664.92,1.09469992]
[1748959302236,3.71927974,666.12,664.92,1.09469992]
[1748959302740,3.71927974,666.18,664.92,1.09469992]
[1748959303039,3.71927974,666.19,664.92,1.09469992]
[1748959303941,3.71927974,666.18,664.92,1.09469992]
[1748959304443,3.71927974,666.22,664.92,1.09469992]
[1748959305440,3.71927974,666.23,664.92,1.09469992]
[1748959306543,3.71927974,666.27,664.92,1.09469992]
[1748959306743,3.71927974,666.26,664.92,1.09469992]
[1748959307645,3.71927974,666.21,664.92,1.09469992]
[1748959308238,3.71927974,666.25,664.92,1.09469992]
[1748959309240,3.71927974,666.24,664.92,1.09469992]
[1748959309645,0.26164725,666.56,664.92,1.09469992]
[1748959309646,3.71927974,666.27,664.92,1.09469992]
[1748959310143,3.71927974,666.22,664.92,1.09469992]
[1748959310541,3.71927974,666.25,664.92,1.09469992]
[1748959311039,3.71927974,666.21,664.92,1.09469992]
[1748959311442,3.71927974,666.22,664.92,1.09469992]
[1748959311948,3.71927974,666.2,664.92,1.09469992]
[1748959312243,3.71927974,666.54,664.92,1.09469992]
[1748959312845,3.71927974,666.52,664.92,1.09469992]
[1748959313741,3.71927974,666.51,664.92,1.09469992]
[1748959314948,0.30007952,666.49,664.92,1.09469992]
[1748959315643,3.71927974,666.48,664.92,1.09469992]
[1748959315851,0.30009302,666.46,664.92,1.09469992]
[1748959316051,3.71927974,666.45,664.92,1.09469992]
[1748959316646,0.30010653,666.43,664.92,1.09469992]
[1748959319149,4.01938627,666.43,664.92,1.09469992]
[1748959320656,3.71927974,666.38,664.92,1.09469992]
[1748959320851,0.30013355,666.37,664.92,1.09469992]
[1748959321052,3.71927974,666.04,664.92,1.09469992]
[1748959321655,3.71927974,665.81,664.92,1.09469992]
[1748959322053,3.71927974,665.76,664.92,1.09469992]
[1748959322458,3.71927974,665.75,664.92,1.09469992]
[1748959322957,3.71927974,665.72,664.92,1.09469992]
[1748959323767,3.71927974,665.67,664.92,1.09469992]
[1748959324360,3.71927974,665.58,664.92,1.09469992]
[1748959325165,3.71927974,665.55,664.92,1.09469992]
[1748959325566,3.71927974,665.48,664.92,1.09469992]
[1748959326270,3.71927974,665.55,664.92,1.09469992]
[1748959326471,3.71927974,665.54,664.92,1.09469992]
[1748959327172,3.71927974,665.56,664.92,1.09469992]
[1748959327672,3.71927974,665.51,664.92,1.09469992]
[1748959327869,3.71927974,665.62,664.92,1.09469992]
[1748959328463,3.71927974,665.65,664.92,1.09469992]
[1748959328866,7.43855948,666.27,664.92,1.09469992]
[1748959328867,3.71927974,665.64,664.92,1.09469992]
[1748959329267,3.71927974,665.68,664.92,1.09469992]
[1748959329470,7.43855948,666.27,664.92,1.09469992]
[1748959329667,0.30013355,666.37,664.92,1.09469992]
[1748959330066,5.22307261,665.88,664.92,1.09469992]
[1748959330376,3.73076615,665.64,664.92,1.09469992]
[1748959330568,3.73076615,665.78,664.92,1.09469992]
[1748959330975,5.22307261,665.88,664.92,1.09469992]
[1748959330976,3.73076615,665.73,664.92,1.09469992]
[1748959331668,3.73076615,665.75,664.92,1.09469992]
[1748959332173,3.73076615,665.74,664.92,1.09469992]
[1748959332572,3.73076615,665.73,664.92,1.09469992]
[1748959333474,3.73076615,665.75,664.92,1.09469992]
[1748959334469,3.73076615,665.77,664.92,1.09469992]
[1748959334871,3.73076615,665.81,664.92,1.09469992]
[1748959335473,3.73076615,665.77,664.92,1.09469992]
[1748959336869,3.73076615,665.78,664.92,1.09469992]
[1748959337269,5.22307261,666.07,664.92,1.09469992]
[1748959337270,3.73076615,665.75,664.92,1.09469992]
[1748959337674,3.73076615,665.76,664.92,1.09469992]
[1748959338270,3.73076615,665.8,664.92,1.09469992]
[1748959338474,0.30039501,665.79,664.92,1.09469992]
[1748959347686,3.73076615,666.19,664.92,1.09469992]
[1748959347981,0.30021915,666.18,664.92,1.09469992]
[1748959348786,0.30021915,666.18,664.21,1.49749612]
[1748959348787,0.30021915,666.18,664.49,0.47714669]
[1748959348987,0.30021915,666.18,664.5,1.54908302]
[1748959349184,0.30021915,666.18,664.52,0.30096912]
[1748959349384,0.30021915,666.18,664.53,1.07193633]
[1748959349585,0.30021915,666.18,664.55,0.30095553]
[1748959349788,0.30021915,666.18,664.56,1.07193633]
[1748959349983,0.30021915,666.18,664.57,1.3728828]
[1748959350188,0.30021915,666.18,664.58,1.37287827]
[1748959350486,0.30021915,666.18,664.58,0.30094194]
[1748959350688,0.30021915,666.18,664.59,1.07208367]
[1748959350880,0.30021915,666.18,664.6,1.37301656]
[1748959351081,0.30021915,666.18,664.61,1.37301203]
[1748959351285,0.30021915,666.18,664.62,1.3730075]
[1748959351486,0.30021915,666.18,664.63,1.07208367]
[1748959351682,0.30021915,666.18,664.62,0.30092383]
[1748959351683,0.30021915,666.18,664.69,0.47714669]
[1748959351884,3.73076615,666.16,664.68,0.47714669]
[1748959352285,0.30021915,666.18,664.69,1.07209962]
[1748959352483,0.30021915,666.18,664.71,0.47714669]
[1748959352685,4.0309853,666.18,664.72,0.30087856]
[1748959352888,4.0309853,666.18,664.73,0.47714669]
[1748959353088,0.30021915,666.18,664.75,0.47714669]
[1748959353284,0.30021915,666.18,664.74,0.30086951]
[1748959353285,0.30021915,666.18,664.77,0.47714669]
[1748959353688,0.30021915,666.18,664.78,0.47714669]
[1748959353887,0.30021915,666.18,664.79,0.47714669]
[1748959354087,0.30021915,666.18,664.78,0.47714669]
[1748959354291,0.30021915,666.18,664.8,0.47714669]
[1748959354883,0.30021915,666.18,664.85,0.47714669]
[1748959355087,4.0309853,666.18,664.87,0.47714669]
[1748959355383,4.0309853,666.18,664.84,0.47714669]
[1748959355582,0.30021915,666.18,664.85,0.47714669]
[1748959355786,0.30021915,666.18,664.83,0.47714669]
[1748959356289,0.30021915,666.18,664.87,0.47714669]
[1748959356888,0.30021915,666.18,664.83,0.47714669]
[1748959357088,0.30021915,666.18,664.81,0.47714669]
[1748959357786,0.30021915,666.18,664.83,0.47714669]
[1748959358288,0.30021915,666.18,664.84,0.47714669]
[1748959358488,0.30021915,666.18,664.74,0.30086951]
[1748959359986,0.30021915,666.18,664.75,1.07117664]
[1748959360191,0.30021915,666.18,664.74,0.30086951]
[1748959360892,0.30021915,666.18,664.78,0.4758047]
[1748959361088,0.30021915,666.18,664.77,0.4758047]
[1748959361286,0.30021915,666.18,664.76,0.4758047]
[1748959361488,0.30021915,666.18,664.74,0.30086951]
[1748959361489,4.02686364,666.18,664.78,0.4758047]
[1748959361687,4.02686364,666.18,664.76,0.4758047]
[1748959361892,0.30021915,666.18,664.76,0.4758047]
[1748959362092,0.30021915,666.18,664.75,0.4758047]
[1748959362595,0.30021915,666.18,664.78,0.4758047]
[1748959362791,0.30021915,666.18,664.76,0.4758047]
[1748959363192,0.30021915,666.18,664.77,0.4758047]
[1748959363389,0.30021915,666.18,664.76,0.4758047]
[1748959365294,0.30021915,666.18,664.77,0.4758047]
[1748959365494,0.30021915,666.18,664.76,0.4758047]
[1748959365695,0.30021915,666.18,664.74,0.30086951]
[1748959365696,0.30021915,666.18,664.75,0.4758047]
[1748959365898,0.30021915,666.18,664.74,0.77667421]
[1748959366294,0.30021915,666.18,664.75,0.4758047]
[1748959366496,0.30021915,666.18,664.74,0.30086951]
[1748959370903,3.72664449,666.1,664.74,0.30086951]
[1748959371099,0.30025972,666.09,664.74,0.30086951]
[1748959375505,0.30025972,666.09,664.75,0.4758047]
[1748959375705,0.30025972,666.09,664.79,0.4758047]
[1748959375899,0.30025972,666.09,664.83,0.4758047]
[1748959376098,0.30025972,666.09,664.82,0.4758047]
[1748959376301,0.30025972,666.09,664.83,0.4758047]
[1748959376302,3.72664449,666.08,664.83,0.4758047]
[1748959376499,0.30026874,666.07,664.86,0.4758047]
[1748959376703,0.30026874,666.07,664.74,0.30086951]
[1748959376704,0.30026874,666.07,664.89,0.4758047]
[1748959376903,3.72664449,666.05,664.89,0.4758047]
[1748959377104,0.30028226,666.04,665.03,0.4758047]
[1748959377405,3.72664449,665.89,664.99,0.4758047]
[1748959377605,3.72664449,665.89,664.97,0.4758047]
[1748959377801,3.72664449,665.87,664.97,0.4758047]
[1748959378006,3.72664449,665.87,664.79,0.4758047]
[1748959378206,3.72664449,665.91,664.81,0.4758047]
[1748959378404,3.72664449,665.91,664.77,0.4758047]
[1748959378802,3.72664449,665.92,664.77,0.4758047]
[1748959379106,3.72664449,665.91,664.77,0.4758047]
[1748959379302,3.72664449,665.91,664.78,0.4758047]
[1748959379505,3.72664449,665.91,664.76,0.4758047]
[1748959380108,0.30028226,666.04,664.74,0.30086951]
[1748959380109,3.72664449,665.92,664.78,0.4758047]
[1748959380305,3.72664449,665.92,664.84,0.4758047]
[1748959380510,3.72664449,666.0,664.84,0.4758047]
[1748959380711,0.3003048,665.99,664.84,0.4758047]
[1748959381210,0.3003048,665.99,664.85,0.4758047]
[1748959381406,0.3003048,665.99,664.86,0.4758047]
[1748959381611,0.3003048,665.99,664.74,0.30086951]
[1748959387712,3.72664449,665.75,664.88,0.4758047]
[1748959387914,3.72664449,665.75,664.87,0.4758047]
[1748959388114,3.72664449,665.73,664.87,0.4758047]
[1748959388409,3.72664449,665.73,664.76,0.4758047]
[1748959388614,3.72664449,665.82,664.74,0.77667421]
[1748959389014,3.72664449,665.83,664.74,0.77667421]
[1748959389313,3.72664449,665.83,664.74,0.30086951]
[1748959389513,3.72664449,665.82,664.74,0.30086951]
[1748959389914,3.72664449,665.78,664.74,0.30086951]
[1748959391416,3.72664449,665.77,664.62,0.4758047]
[1748959391611,3.72664449,665.77,664.61,0.4758047]
[1748959391814,3.72664449,665.78,664.61,0.4758047]
[1748959392015,3.72664449,665.78,664.6,0.4758047]
[1748959392420,3.72664449,665.77,664.6,0.4758047]
[1748959393016,3.72664449,665.77,664.61,0.4758047]
[1748959393218,3.72664449,665.77,664.6,0.4758047]
[1748959393521,3.72664449,665.77,664.61,0.4758047]
[1748959393722,3.72664449,665.78,664.62,0.4758047]
[1748959394217,0.3003048,665.99,664.12,0.4758047]
[1748959394421,0.3003048,665.99,664.14,0.30114132]
[1748959394622,0.3003048,665.99,664.15,1.07249947]
[1748959394924,0.3003048,665.99,664.17,0.30112772]
[1748959395122,0.3003048,665.99,664.18,1.07249947]
[1748959395315,0.3003048,665.99,664.36,0.4758047]
[1748959395516,0.3003048,665.99,664.37,1.37342227]
[1748959395821,0.3003048,665.99,664.38,1.37341774]
[1748959396019,0.3003048,665.99,664.39,1.37341321]
[1748959396217,0.3003048,665.99,664.4,1.37340867]
[1748959396518,0.3003048,665.99,664.41,1.37340414]
[1748959396723,0.3003048,665.99,664.42,1.37339961]
[1748959396916,0.3003048,665.99,664.43,1.37339508]
[1748959397121,3.72664449,665.83,664.57,0.4758047]
[1748959397518,3.72664449,665.82,664.55,0.4758047]
[1748959398417,3.72664449,665.82,664.54,0.4758047]
[1748959398818,3.72664449,665.83,664.56,0.4758047]
[1748959399226,3.72664449,665.83,664.49,0.4758047]
[1748959399427,3.72664449,665.91,664.49,0.4758047]
[1748959399725,3.72664449,665.88,664.47,0.4758047]
[1748959400227,3.72664449,665.89,664.47,0.4758047]
[1748959400427,3.72664449,665.89,664.46,0.4758047]
[1748959400629,3.72664449,665.75,664.59,0.4758047]
[1748959401526,3.72664449,665.75,664.57,0.4758047]
[1748959401725,3.72664449,665.75,664.55,0.4758047]
[1748959402121,3.72664449,665.75,664.57,0.4758047]
[1748959402327,3.72664449,665.75,664.55,0.4758047]
[1748959402526,3.72664449,665.75,664.56,0.4758047]
[1748959402726,3.72664449,665.75,664.57,0.4758047]
[1748959402924,3.72664449,665.75,664.56,0.4758047]
[1748959403125,3.72664449,665.77,664.56,0.4758047]
[1748959403324,3.72664449,665.77,664.57,0.4758047]
[1748959404933,3.72664449,665.8,664.57,0.4758047]
[1748959405132,3.72664449,665.8,664.58,0.4758047]
[1748959405333,3.72664449,665.79,664.58,0.4758047]
[1748959406130,3.72664449,665.74,664.52,0.4758047]
[1748959406328,3.72664449,665.74,664.46,0.4758047]
[1748959406544,3.72664449,665.81,664.47,0.4758047]
[1748959406936,3.72664449,665.81,664.46,0.4758047]
[1748959407236,3.72664449,665.79,664.45,0.4758047]
[1748959407442,3.72664449,665.79,664.51,0.4758047]
[1748959407635,3.72664449,665.68,664.51,0.4758047]
[1748959407936,3.72664449,665.68,664.44,0.30100535]
[1748959408136,3.72664449,665.7,664.44,0.30100535]
[1748959408636,3.72664449,665.72,664.45,0.4758047]
[1748959409034,3.72664449,665.7,664.44,0.30100535]
[1748959409540,3.72664449,665.7,664.45,0.4758047]
[1748959409737,3.72664449,665.7,664.47,0.4758047]
[1748959410037,3.72664449,665.73,664.47,0.4758047]
[1748959410436,3.72664449,665.74,664.5,0.4758047]
[1748959410836,3.72664449,665.75,664.5,0.4758047]
[1748959411639,3.72664449,665.75,664.52,0.4758047]
[1748959411838,3.72664449,665.78,664.53,0.4758047]
[1748959412236,3.72664449,665.77,664.53,0.4758047]
[1748959412433,0.30040855,665.76,664.53,0.4758047]
[1748959412634,0.30040855,665.76,664.55,0.4758047]
[1748959413237,0.30040855,665.76,664.5,0.4758047]
[1748959413536,0.30040855,665.76,664.51,0.4758047]
[1748959413737,0.30040855,665.76,664.45,0.4758047]
[1748959414540,0.30040855,665.76,664.44,0.30100535]
[1748959414740,0.30040855,665.76,664.45,0.4758047]
[1748959415541,0.30040855,665.76,664.44,0.77681005]
[1748959416134,0.30040855,665.76,664.47,0.4758047]
[1748959416537,0.30040855,665.76,664.46,0.4758047]
[1748959417035,0.30040855,665.76,664.47,0.4758047]
[1748959417438,0.30040855,665.76,664.46,0.4758047]
[1748959417637,0.30040855,665.76,664.51,0.4758047]
[1748959418341,0.30040855,665.76,664.52,0.4758047]
[1748959418534,0.30040855,665.76,664.5,0.4758047]
[1748959418739,4.02705304,665.76,664.51,0.4758047]
[1748959419137,3.72664449,665.75,664.51,0.4758047]
[1748959420543,3.72664449,665.71,664.51,0.4758047]
[1748959420743,3.72664449,665.71,664.5,0.4758047]
[1748959421038,0.30040855,665.76,664.5,0.4758047]
[1748959421039,3.72664449,665.72,664.5,0.4758047]
[1748959421242,3.72664449,665.72,664.51,0.4758047]
[1748959421443,3.72664449,665.72,664.44,0.30100535]
[1748959421444,3.72664449,665.72,664.5,0.4758047]
[1748959421640,3.72664449,665.71,664.51,0.4758047]
[1748959421838,3.72664449,665.71,664.5,0.4758047]
[1748959422039,3.72664449,665.68,664.49,0.4758047]
[1748959422646,3.72664449,665.67,664.47,0.4758047]
[1748959422944,3.72664449,665.67,664.49,0.4758047]
[1748959423144,3.72664449,665.53,664.47,0.4758047]
[1748959423545,3.72664449,665.52,664.47,0.4758047]
[1748959423946,3.72664449,665.51,664.46,0.4758047]
[1748959424342,3.72664449,665.51,664.47,0.4758047]
[1748959424538,0.30043111,665.71,664.49,0.4758047]